bitfinex-derivatives/quotes_BTCF0:USTF0_20251207
["timestamp","ask_amount","ask_price","bid_price","bid_amount"]
[1765115370300,0.44124,89042.0,89041.0,0.1015]
[1765115370494,0.46515738,89042.0,89041.0,0.1015]
[1765115371299,0.46815738,89042.0,89041.0,0.1015]
[1765115371496,0.47615738,89042.0,89041.0,0.1035]
[1765115375110,0.3718,89042.0,89041.0,0.1035]
[1765115377509,0.41202,89042.0,89041.0,0.1035]
[1765115380207,0.3718,89042.0,89041.0,0.1035]
[1765115380407,0.011,89042.0,89041.0,0.4643]
[1765115385915,0.0625,89042.0,89041.0,0.1035]
[1765115386311,0.011,89042.0,89041.0,0.4643]
[1765115387709,0.0625,89042.0,89041.0,0.4643]
[1765115387913,0.0625,89042.0,89041.0,0.1035]
[1765115393123,0.08619321,89042.0,89041.0,0.1035]
[1765115396017,0.03469321,89042.0,89041.0,0.4643]
[1765115396311,0.03472538,89042.0,89041.0,0.4643]
[1765115397627,0.01119598,89042.0,89041.0,0.4643]
[1765115397824,0.00028076,89046.0,89045.0,0.1141]
[1765115399032,0.00428076,89046.0,89045.0,0.1141]
[1765115399433,0.01228076,89046.0,89045.0,0.1161]
[1765115401328,0.05997642,89056.0,89055.0,0.1000781]
[1765115401628,0.0336329,89056.0,89055.0,0.1000781]
[1765115402026,0.47158243,89065.0,89064.0,0.04463]
[1765115402236,0.47158243,89065.0,89053.0,0.3608]
[1765115402237,0.06158,89054.0,89053.0,0.44965]
[1765115402433,0.44079243,89065.0,89046.0,0.1141]
[1765115402434,0.06158,89047.0,89046.0,0.1141]
[1765115402633,0.42538,89056.0,89055.0,0.003]
[1765115402835,0.78618,89056.0,89055.0,0.003]
[1765115403035,0.06158,89046.0,89045.0,0.08901848]
[1765115403236,0.42238,89046.0,89045.0,0.08901848]
[1765115405935,0.42338,89046.0,89045.0,0.09601848]
[1765115408737,0.42338,89046.0,89045.0,0.12126848]
[1765115409443,0.42338,89046.0,89045.0,0.09601848]
[1765115409633,0.42338,89046.0,89045.0,0.00716848]
[1765115409836,0.44694992,89046.0,89045.0,0.00716848]
[1765115410135,0.44694992,89046.0,89045.0,0.05179848]
[1765115410732,0.44694992,89046.0,89045.0,0.12126848]
[1765115411534,0.44694992,89046.0,89045.0,0.09601848]
[1765115411937,0.42338,89046.0,89045.0,0.09601848]
[1765115413346,0.42338,89046.0,89045.0,0.12237848]
[1765115414038,0.3618,89046.0,89045.0,0.12237848]
[1765115416544,0.001,89046.0,89045.0,0.12237848]
[1765115419247,0.03737,89046.0,89045.0,0.12237848]
[1765115419453,0.001,89046.0,89045.0,0.12237848]
[1765115421458,0.03737,89046.0,89045.0,0.12237848]
[1765115421656,0.001,89046.0,89045.0,0.12237848]
[1765115421863,0.03737,89046.0,89045.0,0.12237848]
[1765115423265,0.001,89046.0,89045.0,0.12237848]
[1765115426372,0.3608,89056.0,89055.0,0.11675]
[1765115427765,0.39917,89056.0,89055.0,0.11675]
[1765115428568,0.3628,89056.0,89055.0,0.11675]
[1765115428867,0.40017,89056.0,89055.0,0.12175]
[1765115429069,0.43654,89056.0,89055.0,0.12175]
[1765115433867,0.3638,89056.0,89055.0,0.12175]
[1765115434282,0.43654,89056.0,89055.0,0.12175]
[1765115440973,0.3638,89056.0,89055.0,0.12175]
[1765115441474,0.40017,89056.0,89055.0,0.12175]
[1765115442782,0.3638,89056.0,89055.0,0.12175]
[1765115444676,0.38656,89056.0,89055.0,0.12175]
[1765115445774,0.40932,89056.0,89055.0,0.12175]
[1765115446687,0.3638,89056.0,89055.0,0.12175]
[1765115448287,0.003,89056.0,89055.0,0.12175]
[1765115460386,0.03456848,89064.0,89063.0,0.08172]
[1765115462193,0.03956848,89064.0,89063.0,0.08172]
[1765115462989,0.03656848,89064.0,89063.0,0.08272]
[1765115463794,0.03556848,89064.0,89063.0,0.09372]
[1765115464089,0.00116848,89064.0,89063.0,0.09372]
[1765115467895,0.01836848,89064.0,89063.0,0.09372]
[1765115468091,0.03556848,89064.0,89063.0,0.09372]
[1765115468896,0.01836848,89064.0,89063.0,0.09372]
[1765115469784,0.00116848,89064.0,89063.0,0.09372]
[1765115473394,0.02356848,89064.0,89063.0,0.09372]
[1765115473597,0.00116848,89064.0,89063.0,0.09372]
[1765115478306,0.42080895,89076.0,89075.0,0.07799]
[1765115478507,0.34874121,89076.0,89075.0,0.07799]
[1765115479208,0.36110121,89076.0,89075.0,0.07799]
[1765115479507,0.09098033,89086.0,89081.0,0.07799]
[1765115479508,0.06000895,89083.0,89081.0,0.07799]
[1765115479693,0.06000895,89083.0,89082.0,0.07799]
[1765115480006,0.00016848,89084.0,89083.0,0.07799]
[1765115480207,0.01252848,89084.0,89083.0,0.07799]
[1765115480801,0.01252848,89084.0,89083.0,0.0892145]
[1765115481007,0.00016848,89084.0,89083.0,0.07799]
[1765115481202,0.00016848,89084.0,89083.0,0.07999]
[1765115482502,0.00216848,89084.0,89083.0,0.07999]
[1765115490917,0.02688848,89084.0,89083.0,0.07999]
[1765115493106,0.01452848,89084.0,89083.0,0.07999]
[1765115496717,0.00216848,89084.0,89083.0,0.07999]
[1765115497320,0.01452848,89084.0,89083.0,0.07999]
[1765115497519,0.02688848,89084.0,89083.0,0.07999]
[1765115498018,0.01452848,89084.0,89083.0,0.07999]
[1765115498419,0.00216848,89084.0,89083.0,0.07999]
[1765115503624,0.00216848,89084.0,89083.0,0.44079]
[1765115508828,0.00494895,89106.0,89105.0,0.0841418]
[1765115509025,0.4356,89116.0,89115.0,0.07292]
[1765115510134,0.0748,89116.0,89115.0,0.07292]
[1765115510722,0.0768,89116.0,89115.0,0.07292]
[1765115514132,0.0377,89116.0,89115.0,0.07292]
[1765115514332,0.002,89116.0,89115.0,0.07292]
[1765115515731,0.0768,89116.0,89115.0,0.07292]
[1765115516036,0.0748,89110.0,89109.0,0.07292]
[1765115516229,0.0748,89110.0,89109.0,0.03354]
[1765115516430,0.0748,89108.0,89095.0,0.38416]
[1765115516836,0.0748,89096.0,89095.0,0.03354]
[1765115517037,0.0748,89091.0,89090.0,0.07292]
[1765115518737,0.0748,89091.0,89090.0,0.04254]
[1765115519036,0.0748,89091.0,89090.0,0.009]
[1765115519934,0.0748,89091.0,89090.0,0.01]
[1765115520137,0.3608,89096.0,89095.0,0.07292]
[1765115520336,0.0748,89096.0,89095.0,0.07292]
[1765115521742,0.0748,89096.0,89095.0,0.07992]
[1765115521937,0.0748,89096.0,89095.0,0.08092]
[1765115522334,0.08661,89096.0,89095.0,0.008]
[1765115523544,0.08661,89096.0,89095.0,0.007]
[1765115523841,0.08661,89096.0,89095.0,0.008]
[1765115526233,0.00016838,89099.0,89098.0,0.06907]
[1765115527239,0.0701305,89126.0,89125.0,0.06907]
[1765115527441,0.0701305,89126.0,89110.0,0.02062]
[1765115527639,0.03467,89111.0,89110.0,0.100911]
[1765115527844,0.06985,89111.0,89110.0,0.100911]
[1765115528738,0.07001838,89119.0,89118.0,0.06907]
[1765115530447,0.07101838,89119.0,89118.0,0.06907]
[1765115531350,0.07101838,89119.0,89118.0,0.002]
[1765115532947,0.00116838,89119.0,89118.0,0.07292]
[1765115533146,0.00116838,89119.0,89118.0,0.4449401]
[1765115533542,0.43347,89152.0,89138.0,0.0187]
[1765115533751,0.45562,89152.0,89151.0,0.07415]
[1765115534251,0.43347,89152.0,89151.0,0.07415]
[1765115534954,0.43747,89152.0,89151.0,0.07415]
[1765115535355,0.40128,89152.0,89151.0,0.07415]
[1765115535856,0.40428,89152.0,89151.0,0.07415]
[1765115536056,0.3678,89152.0,89151.0,0.07415]
[1765115537153,0.36565083,89152.0,89151.0,0.07415]
[1765115537356,0.007,89152.0,89151.0,0.43495]
[1765115538252,0.004,89152.0,89151.0,0.43495]
[1765115538458,0.001,89152.0,89151.0,0.43495]
[1765115538644,0.002,89152.0,89151.0,0.43495]
[1765115540555,0.03848,89152.0,89151.0,0.43495]
[1765115541061,0.09412,89152.0,89151.0,0.07415]
[1765115541259,0.07467,89152.0,89151.0,0.07415]
[1765115544760,0.07357,89152.0,89151.0,0.07415]
[1765115545954,0.07267,89144.0,89143.0,0.03842828]
[1765115546154,0.07267,89144.0,89143.0,0.00016828]
[1765115546361,0.43347,89144.0,89143.0,0.00016828]
[1765115547265,0.43347,89144.0,89143.0,0.00216828]
[1765115547662,0.07267,89131.0,89130.0,0.43495]
[1765115548258,0.07267,89131.0,89130.0,0.07415]
[1765115548464,0.07267,89131.0,89119.0,0.3608]
[1765115548465,0.07267,89120.0,89119.0,0.43495]
[1765115549060,0.03648,89120.0,89119.0,0.43495]
[1765115549564,0.07283828,89128.0,89127.0,0.07415]
[1765115550565,0.03664828,89128.0,89127.0,0.43495]
[1765115550958,0.07283828,89128.0,89127.0,0.44295]
[1765115551360,0.07283828,89128.0,89127.0,0.44495]
[1765115557070,0.07283828,89128.0,89127.0,0.3708]
[1765115557271,0.43363828,89128.0,89127.0,0.01]
[1765115557673,0.07267,89112.0,89111.0,0.07431828]
[1765115558974,0.07367,89112.0,89111.0,0.08831828]
[1765115559472,0.07367,89112.0,89111.0,0.01416828]
[1765115559675,0.07367,89112.0,89111.0,0.01816828]
[1765115560566,0.07267,89112.0,89111.0,0.01016828]
[1765115560767,0.07267,89112.0,89111.0,0.00816828]
[1765115562464,0.07267,89112.0,89111.0,0.00616828]
[1765115562668,0.07267,89112.0,89111.0,0.00216828]
[1765115563577,0.09012,89112.0,89111.0,0.00216828]
[1765115568083,0.09351,89100.0,89099.0,0.43583]
[1765115568682,0.09351,89100.0,89099.0,0.3976]
[1765115568995,0.09351,89100.0,89099.0,0.43583]
[1765115569370,0.09451,89100.0,89099.0,0.44483]
[1765115571186,0.07391,89100.0,89099.0,0.44483]
[1765115572585,0.0976,89100.0,89099.0,0.44483]
[1765115574583,0.03656,89100.0,89099.0,0.44483]
[1765115575186,0.07391,89100.0,89099.0,0.44483]
[1765115575687,0.0976,89100.0,89099.0,0.44483]
[1765115576189,0.07391,89100.0,89099.0,0.44483]
[1765115577883,0.0976,89100.0,89099.0,0.44483]
[1765115578989,0.0976,89100.0,89099.0,0.08403]
[1765115579392,0.07391,89100.0,89099.0,0.08403]
[1765115579794,0.09403,89100.0,89099.0,0.08403]
[1765115581193,0.06787,89092.0,89091.0,0.03228828]
[1765115581902,0.06787,89092.0,89091.0,0.06615828]
[1765115582491,0.06787,89092.0,89091.0,0.06815828]
[1765115582793,0.06787,89092.0,89091.0,0.06915828]
[1765115583395,0.3608,89095.0,89094.0,0.06599]
[1765115583694,0.42867,89095.0,89094.0,0.06599]
[1765115583893,0.06787,89095.0,89094.0,0.06599]
[1765115585192,0.06987,89095.0,89094.0,0.06899]
[1765115596910,0.08456,89095.0,89094.0,0.06899]
[1765115597414,0.08456,89095.0,89094.0,0.003]
[1765115604517,0.06505,89092.0,89091.0,0.00016828]
[1765115604816,0.06505,89087.0,89076.0,0.3608]
[1765115605015,0.58637,89087.0,89076.0,0.3608]
[1765115605713,0.58637,89087.0,89086.0,0.06814063]
[1765115605913,0.06505,89087.0,89086.0,0.06814063]
[1765115606106,0.58637,89087.0,89086.0,0.06814063]
[1765115606612,0.58737,89087.0,89086.0,0.07114063]
[1765115607115,0.58637,89087.0,89086.0,0.06814063]
[1765115607317,0.58937,89087.0,89086.0,0.06914063]
[1765115607509,0.58933,89087.0,89086.0,0.06914063]
[1765115607709,0.58933,89087.0,89086.0,0.07114063]
[1765115611015,0.06805,89087.0,89086.0,0.07114063]
[1765115611215,0.58933,89087.0,89086.0,0.07114063]
[1765115616118,0.58937,89087.0,89086.0,0.07114063]
[1765115619322,0.003,89087.0,89086.0,0.07114063]
[1765115619528,0.03407,89087.0,89086.0,0.07114063]
[1765115619728,0.06805,89087.0,89086.0,0.07114063]
[1765115622730,0.003,89087.0,89086.0,0.07114063]
[1765115628333,0.06010828,89108.0,89107.0,0.0645]
[1765115629327,0.06010828,89108.0,89107.0,0.0665]
[1765115629533,0.07210828,89108.0,89107.0,0.0665]
[1765115629934,0.07310828,89108.0,89107.0,0.0665]
[1765115633926,0.09223828,89108.0,89107.0,0.0665]
[1765115637335,0.09223828,89108.0,89107.0,0.002]
[1765115638240,0.09223828,89108.0,89099.0,0.00016828]
[1765115638241,0.07246,89100.0,89099.0,0.00016828]
[1765115639643,0.5937,89100.0,89099.0,0.00016828]
[1765115640740,0.6007,89100.0,89099.0,0.03206828]
[1765115642935,0.6007,89100.0,89099.0,0.06566828]
[1765115643847,0.6007,89100.0,89099.0,0.07689078]
[1765115643848,0.06694,89100.0,89099.0,0.07689078]
[1765115644148,0.06694,89100.0,89099.0,0.06566828]
[1765115647347,0.06614,89100.0,89099.0,0.06566828]
[1765115647654,0.06614,89100.0,89099.0,0.07689078]
[1765115647655,0.007,89100.0,89099.0,0.07689078]
[1765115648249,0.03516,89100.0,89099.0,0.07689078]
[1765115648750,0.0642,89100.0,89099.0,0.07689078]
[1765115652352,0.0642,89100.0,89099.0,0.11726057]
[1765115653350,0.0642,89100.0,89099.0,0.07689078]
[1765115656357,0.0642,89100.0,89099.0,0.43769078]
[1765115658054,0.03516,89100.0,89099.0,0.43769078]
[1765115658550,0.03516,89100.0,89099.0,0.07689078]
[1765115658757,0.0637,89100.0,89099.0,0.43769078]
[1765115658952,0.03516,89100.0,89099.0,0.43769078]
[1765115659853,0.0637,89100.0,89099.0,0.43769078]
[1765115660457,0.007,89100.0,89099.0,0.43769078]
[1765115660850,0.03404,89100.0,89099.0,0.43769078]
[1765115661050,0.06258,89100.0,89099.0,0.43769078]
[1765115661750,0.06258,89100.0,89099.0,0.43869078]
[1765115662758,0.06058,89100.0,89099.0,0.43869078]
[1765115663354,0.05558,89100.0,89099.0,0.43769078]
[1765115663554,0.05958,89100.0,89099.0,0.43869078]
[1765115665060,0.004,89100.0,89099.0,0.43869078]
[1765115665857,0.05958,89100.0,89099.0,0.43869078]
[1765115666554,0.03104,89100.0,89099.0,0.43869078]
[1765115667257,0.05958,89100.0,89099.0,0.43869078]
[1765115668346,0.05958,89100.0,89099.0,0.42746828]
[1765115669866,0.07364,89100.0,89099.0,0.00216828]
[1765115672667,0.07364,89100.0,89076.0,0.01653]
[1765115672668,0.05558,89087.0,89083.0,0.3608]
[1765115673052,0.05558,89087.0,89086.0,0.02909063]
[1765115673252,0.05558,89087.0,89086.0,0.05656063]
[1765115673860,0.05558,89087.0,89086.0,0.05956063]
[1765115674058,0.05658,89087.0,89086.0,0.06156063]
[1765115675865,0.05658,89087.0,89086.0,0.05856063]
[1765115676166,0.05858,89087.0,89086.0,0.05956063]
[1765115677268,0.03004,89087.0,89086.0,0.05956063]
[1765115678565,0.004,89087.0,89086.0,0.05956063]
[1765115678762,0.03104,89087.0,89086.0,0.05956063]
[1765115679166,0.05958,89087.0,89086.0,0.05956063]
[1765115679570,0.004,89087.0,89086.0,0.05956063]
[1765115679966,0.03104,89087.0,89086.0,0.05956063]
[1765115681568,0.05958,89087.0,89086.0,0.05956063]
[1765115682775,0.03104,89087.0,89086.0,0.05956063]
[1765115683376,0.05875,89087.0,89086.0,0.05956063]
[1765115684378,0.05875,89087.0,89086.0,0.42036063]
[1765115689578,0.05875,89087.0,89086.0,0.05956063]
[1765115689777,0.05875,89087.0,89086.0,0.42036063]
[1765115690275,0.004,89087.0,89086.0,0.42036063]
[1765115695478,0.004,89087.0,89086.0,0.46073042]
[1765115696984,0.004,89087.0,89086.0,0.42036063]
[1765115697373,0.004,89087.0,89086.0,0.46073042]
[1765115698586,0.004,89087.0,89086.0,0.42036063]
[1765115699182,0.0029,89087.0,89086.0,0.42036063]
[1765115699486,0.03179,89087.0,89086.0,0.42036063]
[1765115699686,0.0029,89087.0,89086.0,0.42036063]
[1765115705086,0.05992,89087.0,89086.0,0.42036063]
[1765115705486,0.0029,89087.0,89086.0,0.42036063]
[1765115708892,0.0029,89087.0,89086.0,0.05956063]
[1765115709087,0.0029,89087.0,89086.0,0.42036063]
[1765115711190,0.0029,89087.0,89086.0,0.05956063]
[1765115711393,0.05702,89106.0,89105.0,0.05682]
[1765115711589,0.05805,89106.0,89105.0,0.05682]
[1765115712296,0.05805,89106.0,89105.0,0.0680418]
[1765115712595,0.05905,89106.0,89105.0,0.0680418]
[1765115712795,0.07005,89106.0,89105.0,0.0700418]
[1765115714101,0.06905,89106.0,89105.0,0.0700418]
[1765115714892,0.06305,89106.0,89105.0,0.0690418]
[1765115715597,0.06305,89106.0,89105.0,0.05782]
[1765115717603,0.06305,89106.0,89105.0,0.41862]
[1765115724496,0.06305,89106.0,89105.0,0.05782]
[1765115724700,0.06305,89106.0,89105.0,0.41862]
[1765115731308,0.005,89106.0,89105.0,0.41862]
[1765115731611,0.00016828,89108.0,89107.0,0.05684]
[1765115732409,0.3608,89122.0,89121.0,0.05684]
[1765115732410,0.41831,89122.0,89121.0,0.05684]
[1765115733108,0.05751,89128.0,89127.0,0.02859]
[1765115733314,0.05751,89128.0,89127.0,0.05684]
[1765115733909,0.07668781,89136.0,89132.0,0.05684]
[1765115733910,0.41831,89133.0,89132.0,0.05684]
[1765115734302,0.41831,89133.0,89132.0,0.02825]
[1765115735613,0.42431,89133.0,89132.0,0.02925]
[1765115736815,0.42631,89133.0,89132.0,0.02925]
[1765115737013,0.42631,89133.0,89132.0,0.001]
[1765115738314,0.42631,89133.0,89132.0,0.02925]
[1765115738913,0.42631,89133.0,89132.0,0.05784]
[1765115740224,0.42631,89133.0,89132.0,0.02925]
[1765115742822,0.06551,89133.0,89132.0,0.02925]
[1765115745040,0.06551,89133.0,89132.0,0.05722]
[1765115746033,0.008,89133.0,89132.0,0.06604]
[1765115746541,0.06691,89133.0,89132.0,0.06604]
[1765115748340,0.05621,89133.0,89132.0,0.06604]
[1765115750344,0.05621,89133.0,89132.0,0.05722]
[1765115755160,0.05621,89133.0,89132.0,0.07388]
[1765115756258,0.03010828,89136.0,89135.0,0.05773]
[1765115756550,0.05907828,89136.0,89135.0,0.05773]
[1765115757565,0.06007828,89136.0,89135.0,0.05773]
[1765115757949,0.06207828,89136.0,89135.0,0.05773]
[1765115761959,0.05826,89129.0,89128.0,0.41679]
[1765115762754,0.03249828,89136.0,89135.0,0.05599]
[1765115763154,0.06142828,89136.0,89135.0,0.05599]
[1765115763354,0.06042828,89136.0,89135.0,0.05599]
[1765115763958,0.07595828,89136.0,89135.0,0.05599]
[1765115764262,0.07695828,89136.0,89135.0,0.05599]
[1765115764850,0.07895828,89136.0,89135.0,0.02766]
[1765115765471,0.07895828,89136.0,89135.0,0.05599]
[1765115766969,0.05826,89129.0,89128.0,0.41679]
[1765115767866,0.05826,89129.0,89128.0,0.43279]
[1765115768268,0.05926,89129.0,89128.0,0.43479]
[1765115769568,0.03033,89129.0,89128.0,0.43479]
[1765115769768,0.001,89129.0,89128.0,0.43479]
[1765115771269,0.03033,89129.0,89128.0,0.43479]
[1765115771474,0.05926,89129.0,89128.0,0.43479]
[1765115771773,0.001,89129.0,89128.0,0.43479]
[1765115774274,0.02984,89129.0,89128.0,0.43479]
[1765115774678,0.05763,89129.0,89128.0,0.43479]
[1765115775069,0.02984,89129.0,89128.0,0.43479]
[1765115775270,0.05763,89129.0,89128.0,0.43479]
[1765115777769,0.001,89129.0,89128.0,0.43479]
[1765115777970,0.001,89129.0,89128.0,0.47520001]
[1765115779478,0.00016828,89136.0,89135.0,0.067578]
[1765115780678,0.00216828,89136.0,89135.0,0.067578]
[1765115780878,0.00316828,89136.0,89135.0,0.067578]
[1765115782278,0.00216828,89136.0,89135.0,0.10794091]
[1765115782581,0.00216828,89136.0,89135.0,0.11094091]
[1765115782980,0.00016828,89136.0,89135.0,0.11094091]
[1765115783181,0.00016828,89136.0,89135.0,0.070578]
[1765115783781,0.00016828,89136.0,89135.0,0.11094091]
[1765115784183,0.00016828,89136.0,89135.0,0.070578]
[1765115784887,0.00016828,89136.0,89135.0,0.11094091]
[1765115786185,0.00016828,89136.0,89135.0,0.070578]
[1765115787190,0.05679828,89136.0,89135.0,0.070578]
[1765115789891,0.05679828,89136.0,89135.0,0.05936]
[1765115790287,0.07009828,89136.0,89135.0,0.05936]
[1765115790492,0.07009828,89136.0,89135.0,0.003]
[1765115790894,0.07009828,89136.0,89135.0,0.05936]
[1765115794997,0.05679828,89136.0,89135.0,0.05936]
[1765115802897,0.00016828,89136.0,89135.0,0.05936]
[1765115805804,0.02971828,89136.0,89135.0,0.05936]
[1765115806004,0.05719828,89136.0,89135.0,0.05936]
[1765115807206,0.07409828,89136.0,89135.0,0.05936]
[1765115807605,0.07409828,89136.0,89135.0,0.03102]
[1765115808007,0.07409828,89136.0,89135.0,0.06012]
[1765115813209,0.05719828,89136.0,89135.0,0.06012]
[1765115816518,0.00016828,89136.0,89135.0,0.06012]
[1765115816721,0.00016828,89136.0,89135.0,0.42092]
[1765115816921,0.00016828,89136.0,89135.0,0.46128291]
[1765115817118,0.05703,89150.0,89141.0,0.0112172]
[1765115817326,0.05703,89150.0,89149.0,0.05746]
[1765115818523,0.06103,89150.0,89149.0,0.05746]
[1765115819428,0.06303,89150.0,89149.0,0.05746]
[1765115822411,0.006,89150.0,89149.0,0.05746]
[1765115822611,0.03431,89150.0,89149.0,0.05746]
[1765115822821,0.006,89150.0,89149.0,0.05746]
[1765115823024,0.0050682,89150.0,89149.0,0.05746]
[1765115823328,0.00016828,89158.0,89157.0,0.0677752]
[1765115823526,0.00016828,89158.0,89157.0,0.4285752]
[1765115824121,0.05821828,89158.0,89157.0,0.41736]
[1765115824728,0.06121828,89158.0,89157.0,0.41736]
[1765115825329,0.05805,89151.0,89150.0,0.027]
[1765115826330,0.05805,89151.0,89150.0,0.05656]
[1765115826934,0.05805,89151.0,89150.0,0.05856]
[1765115827429,0.05805,89151.0,89150.0,0.002]
[1765115827827,0.41885,89151.0,89150.0,0.002]
[1765115836231,0.41885,89151.0,89130.0,0.01644]
[1765115836534,0.41885,89151.0,89141.0,0.05646828]
[1765115836535,0.05658,89142.0,89141.0,0.05646828]
[1765115836935,0.05658,89142.0,89141.0,0.00016828]
[1765115837538,0.05658,89142.0,89141.0,0.00316828]
[1765115839039,0.05658,89142.0,89141.0,0.00716828]
[1765115845938,0.05658,89142.0,89141.0,0.06346828]
[1765115855652,0.05658,89142.0,89141.0,0.00716828]
[1765115856047,0.11639953,89142.0,89141.0,0.00716828]
[1765115856242,0.05658,89142.0,89141.0,0.00716828]
[1765115856454,0.37478,89144.0,89128.0,0.4171]
[1765115856455,0.05658,89129.0,89128.0,0.4171]
[1765115857152,0.05658,89129.0,89128.0,0.38985]
[1765115857450,0.05658,89129.0,89117.0,0.04032934]
[1765115857451,0.05658,89118.0,89117.0,0.0563]
[1765115859354,0.05658,89118.0,89117.0,0.0663]
[1765115860154,0.0293,89118.0,89117.0,0.0693]
[1765115861261,0.05658,89132.0,89131.0,0.0563]
[1765115862456,0.05658,89132.0,89131.0,0.0573]
[1765115863156,0.05658,89132.0,89131.0,0.0583]
[1765115867061,0.05658,89132.0,89131.0,0.002]
[1765115870361,0.05658,89132.0,89131.0,0.03104]
[1765115870763,0.05658,89132.0,89131.0,0.002]
[1765115871059,0.05658,89132.0,89131.0,0.05993]
[1765115871262,0.5773,89132.0,89131.0,0.05993]
[1765115872656,0.05658,89132.0,89131.0,0.05993]
[1765115872857,0.5773,89132.0,89131.0,0.05993]
[1765115874355,0.5773,89132.0,89131.0,0.002]
[1765115877658,0.9381,89132.0,89131.0,0.002]
[1765115878662,0.95163,89132.0,89131.0,0.002]
[1765115883065,0.05895,89119.0,89118.0,0.41723]
[1765115884573,0.05895,89119.0,89118.0,0.42323]
[1765115885165,0.05895,89119.0,89118.0,0.42623]
[1765115886060,0.05895,89119.0,89118.0,0.03713]
[1765115886262,0.05895,89119.0,89118.0,0.06543]
[1765115887177,0.05895,89119.0,89118.0,0.06243]
[1765115887874,0.05895,89119.0,89118.0,0.05943]
[1765115888080,0.05895,89119.0,89118.0,0.06143]
[1765115941630,0.08740293,89123.0,89122.0,0.05855]
[1765115942429,0.08740293,89124.0,89123.0,0.05855]
[1765115942627,0.11586293,89124.0,89123.0,0.05855]
[1765115942830,0.05565,89124.0,89123.0,0.05855]
[1765115944030,0.05565,89124.0,89123.0,0.05955]
[1765115944526,0.07249,89124.0,89123.0,0.06055]
[1765115944927,0.07249,89124.0,89123.0,0.03076]
[1765115946723,0.07249,89124.0,89123.0,0.002]
[1765115947624,0.05565,89114.0,89113.0,0.3608]
[1765115947824,0.05565,89110.0,89109.0,0.00016828]
[1765115948024,0.41645,89110.0,89109.0,0.00016828]
[1765115949935,0.41645,89110.0,89109.0,0.00475078]
[1765115950526,0.41645,89110.0,89109.0,0.00775078]
[1765115951532,0.41645,89110.0,89109.0,0.00475078]
[1765115952135,0.41645,89110.0,89101.0,0.00016828]
[1765115952336,0.05651,89102.0,89101.0,0.05605828]
[1765115952539,0.57719,89102.0,89101.0,0.05605828]
[1765115953432,0.57719,89102.0,89101.0,0.05705828]
[1765115954437,0.57719,89102.0,89101.0,0.05805828]
[1765115958829,0.57719,89102.0,89091.0,0.01642]
[1765115958830,0.0577,89087.0,89082.0,0.04032934]
[1765115959043,0.57838,89087.0,89070.0,0.04032934]
[1765115959245,0.57838,89087.0,89068.0,0.0162]
[1765115959936,0.57838,89087.0,89086.0,0.00228063]
[1765115960338,0.57838,89087.0,89086.0,0.00428063]
[1765115960530,0.57838,89087.0,89086.0,0.05812063]
[1765115960843,0.57838,89087.0,89086.0,0.05912063]
[1765115961738,0.57938,89087.0,89086.0,0.05712063]
[1765115964337,0.57946,89087.0,89086.0,0.05712063]
[1765115968947,0.5795,89087.0,89086.0,0.05712063]
[1765115969550,0.0587,89087.0,89086.0,0.05712063]
[1765115969750,0.5795,89087.0,89086.0,0.05712063]
[1765115970154,0.0587,89087.0,89086.0,0.05712063]
[1765115970354,0.55474,89087.0,89086.0,0.05712063]
[1765115971355,0.0587,89087.0,89086.0,0.05712063]
[1765115971754,0.5795,89087.0,89086.0,0.05712063]
[1765115972655,0.5795,89087.0,89086.0,0.00128063]
[1765115973651,0.0587,89087.0,89086.0,0.00128063]
[1765115973959,0.5795,89087.0,89086.0,0.00128063]
[1765115975763,0.5795,89087.0,89086.0,0.02999063]
[1765115976359,0.9403,89087.0,89086.0,0.02999063]
[1765115977058,0.9403,89087.0,89086.0,0.05712063]
[1765115979861,0.4195,89087.0,89086.0,0.05712063]
[1765115980064,0.9403,89087.0,89086.0,0.05712063]
[1765115980457,0.4195,89087.0,89086.0,0.05712063]
[1765115980660,0.9403,89087.0,89086.0,0.05712063]
[1765115981066,0.4195,89087.0,89086.0,0.05712063]
[1765115981266,0.9403,89087.0,89086.0,0.05712063]
[1765115983466,0.94034,89087.0,89086.0,0.05712063]
[1765115983972,0.4195,89087.0,89086.0,0.05712063]
[1765115984170,0.94034,89087.0,89086.0,0.05712063]
[1765115986571,0.57954,89087.0,89086.0,0.05712063]
[1765115991372,0.0587,89087.0,89086.0,0.05712063]
[1765115991677,0.57954,89087.0,89086.0,0.05712063]
[1765115991975,0.0587,89087.0,89086.0,0.05712063]
[1765115996374,0.0587,89087.0,89086.0,0.00128063]
[1765115998077,0.0587,89087.0,89086.0,0.03057063]
[1765115998679,0.0587,89087.0,89086.0,0.05993063]
[1765115999578,0.001,89087.0,89086.0,0.05993063]
[1765115999881,0.08000024,89101.0,89086.0,0.05993063]
[1765115999882,0.42101293,89108.0,89094.0,0.05865]
[1765116000083,0.3608,89108.0,89094.0,0.41945]
[1765116000679,0.05771828,89095.0,89094.0,0.41945]
[1765116001078,0.05771828,89095.0,89094.0,0.43050203]
[1765116001282,0.05755,89089.0,89088.0,0.09906203]
[1765116001676,0.05755,89089.0,89088.0,0.02929]
[1765116002477,0.05755,89087.0,89086.0,0.00028063]
[1765116004280,0.05755,89087.0,89086.0,0.00128063]
[1765116004591,0.05755,89087.0,89086.0,0.02896063]
[1765116006283,0.05755,89087.0,89086.0,0.00128063]
[1765116010087,0.05755,89087.0,89086.0,0.02896063]
[1765116011280,0.05755,89087.0,89086.0,0.05643063]
[1765116011493,0.05755,89087.0,89086.0,0.02896063]
[1765116012791,0.05755,89087.0,89086.0,0.05800063]
[1765116020396,0.05755,89087.0,89086.0,0.41880063]
[1765116020796,0.00016828,89095.0,89094.0,0.05734]
[1765116020993,0.00016828,89095.0,89094.0,0.41814]
[1765116021397,0.05740828,89095.0,89094.0,0.41814]
[1765116021598,0.05740828,89095.0,89094.0,0.05734]